{"text_format":"1","workbook":"xlsx","n_sheets":3,"sheets":["Form. Cotação - SempreVida","Praça SempreVida","INPUTS"],"not_rendered":{"charts":0,"images":2,"macros":1,"external_links":0,"defined_names":1,"comments":0,"pivot_tables":0},"unopened":[],"bounds":{"document_bytes":16777216,"sheet_cells":100000,"rows_first":2000,"rows_last":500,"rows_between":2000,"halvings":0,"cell_chars":16384,"cell_head_chars":4096},"cells_cut":0,"cells_raw":0,"read":"whole","date_system":"1900"}

{"sheet":"Form. Cotação - SempreVida","index":0,"n_rows":149,"n_cols":34,"rows_kept":149,"cut":false,"hidden":false,"merged":[[138,14,138,17],[138,18,138,20],[138,21,138,24],[138,25,138,28],[138,29,138,32],[138,33,138,35],[138,2,138,4],[139,14,139,17],[139,18,139,20],[139,21,139,24],[139,25,139,28],[139,29,139,32],[139,33,139,35],[136,14,136,17],[136,18,136,20],[136,21,136,24],[136,25,136,28],[136,29,136,32],[136,33,136,35],[136,2,136,4],[137,14,137,17],[137,18,137,20],[137,21,137,24],[137,25,137,28],[137,29,137,32],[137,33,137,35],[137,2,137,4],[134,14,134,17],[134,18,134,20],[134,21,134,24],[134,25,134,28],[134,29,134,32],[134,33,134,35],[134,2,134,4],[135,14,135,17],[135,18,135,20],[135,21,135,24],[135,25,135,28],[135,29,135,32],[135,33,135,35],[135,2,135,4],[132,14,132,17],[132,18,132,20],[132,21,132,24],[132,25,132,28],[132,29,132,32],[132,33,132,35],[132,2,132,4],[133,14,133,17],[133,18,133,20],[133,21,133,24],[133,25,133,28],[133,29,133,32],[133,33,133,35],[133,2,133,4],[130,14,130,17],[130,18,130,20],[130,21,130,24],[130,25,130,28],[130,29,130,32],[130,33,130,35],[130,2,130,4],[131,14,131,17],[131,18,131,20],[131,21,131,24],[131,25,131,28],[131,29,131,32],[131,33,131,35],[131,2,131,4],[128,21,128,24],[128,25,128,28],[128,29,128,32],[128,33,128,35],[128,2,128,4],[129,14,129,17],[129,18,129,20],[129,21,129,24],[129,25,129,28],[129,29,129,32],[129,33,129,35],[129,2,129,4],[148,2,148,4],[148,14,148,17],[148,18,148,20],[148,21,148,24],[148,25,148,28],[148,29,148,32],[148,33,148,35],[125,2,125,4],[126,14,126,17],[126,18,126,20],[126,21,126,24],[126,25,126,28],[126,29,126,32],[126,33,126,35],[126,2,126,4],[127,14,127,17],[127,18,127,20],[127,21,127,24],[127,25,127,28],[127,29,127,32],[127,33,127,35],[127,2,127,4],[128,14,128,17],[128,18,128,20],[108,14,108,17],[108,18,108,20],[108,21,108,24],[108,25,108,28],[108,29,108,32],[108,33,108,35],[108,2,108,4],[109,14,109,17],[109,18,109,20],[109,21,109,24],[109,25,109,28],[109,29,109,32],[109,33,109,35],[106,14,106,17],[106,18,106,20],[106,21,106,24],[106,25,106,28],[106,29,106,32],[106,33,106,35],[106,2,106,4],[107,14,107,17],[107,18,107,20],[107,21,107,24],[107,25,107,28],[107,29,107,32],[107,33,107,35],[107,2,107,4],[104,5,104,13],[104,14,104,17],[104,18,104,20],[104,21,104,24],[104,25,104,28],[104,29,104,32],[104,33,104,35],[104,2,104,4],[105,14,105,17],[105,18,105,20],[105,21,105,24],[105,25,105,28],[105,29,105,32],[105,33,105,35],[105,2,105,4],[146,14,146,17],[146,18,146,20],[146,21,146,24],[146,25,146,28],[146,29,146,32],[146,33,146,35],[146,2,146,4],[147,14,147,17],[147,18,147,20],[147,21,147,24],[147,25,147,28],[147,29,147,32],[147,33,147,35],[147,2,147,4],[144,14,144,17],[144,18,144,20],[144,21,144,24],[144,25,144,28],[144,29,144,32],[144,33,144,35],[144,2,144,4],[145,14,145,17],[145,18,145,20],[145,21,145,24],[145,25,145,28],[145,29,145,32],[145,33,145,35],[145,2,145,4],[142,14,142,17],[142,18,142,20],[142,21,142,24],[142,25,142,28],[142,29,142,32],[142,33,142,35],[142,2,142,4],[143,14,143,17],[143,18,143,20],[143,21,143,24],[143,25,143,28],[143,29,143,32],[143,33,143,35],[143,2,143,4],[139,2,139,4],[140,14,140,17],[140,18,140,20],[140,21,140,24],[140,25,140,28],[140,29,140,32],[140,33,140,35],[140,2,140,4],[141,14,141,17],[141,18,141,20],[141,21,141,24],[141,25,141,28],[141,29,141,32],[141,33,141,35],[141,2,141,4],[124,14,124,17],[124,18,124,20],[124,21,124,24],[124,25,124,28],[124,29,124,32],[124,33,124,35],[124,2,124,4],[125,14,125,17],[125,18,125,20],[125,21,125,24],[125,25,125,28],[125,29,125,32],[125,33,125,35],[122,14,122,17],[122,18,122,20],[122,21,122,24],[122,25,122,28],[122,29,122,32],[122,33,122,35],[122,2,122,4],[123,14,123,17],[123,18,123,20],[123,21,123,24],[123,25,123,28],[123,29,123,32],[123,33,123,35],[123,2,123,4],[120,14,120,17],[120,18,120,20],[120,21,120,24],[120,25,120,28],[120,29,120,32],[120,33,120,35],[120,2,120,4],[121,14,121,17],[121,18,121,20],[121,21,121,24],[121,25,121,28],[121,29,121,32],[121,33,121,35],[121,2,121,4],[118,14,118,17],[118,18,118,20],[118,21,118,24],[118,25,118,28],[118,29,118,32],[118,33,118,35],[118,2,118,4],[119,14,119,17],[119,18,119,20],[119,21,119,24],[119,25,119,28],[119,29,119,32],[119,33,119,35],[119,2,119,4],[116,14,116,17],[116,18,116,20],[116,21,116,24],[116,25,116,28],[116,29,116,32],[116,33,116,35],[116,2,116,4],[117,14,117,17],[117,18,117,20],[117,21,117,24],[117,25,117,28],[117,29,117,32],[117,33,117,35],[117,2,117,4],[114,14,114,17],[114,18,114,20],[114,21,114,24],[114,25,114,28],[114,29,114,32],[114,33,114,35],[114,2,114,4],[115,14,115,17],[115,18,115,20],[115,21,115,24],[115,25,115,28],[115,29,115,32],[115,33,115,35],[115,2,115,4],[112,14,112,17],[112,18,112,20],[112,21,112,24],[112,25,112,28],[112,29,112,32],[112,33,112,35],[112,2,112,4],[113,14,113,17],[113,18,113,20],[113,21,113,24],[113,25,113,28],[113,29,113,32],[113,33,113,35],[113,2,113,4],[109,2,109,4],[110,14,110,17],[110,18,110,20],[110,21,110,24],[110,25,110,28],[110,29,110,32],[110,33,110,35],[110,2,110,4],[111,14,111,17],[111,18,111,20],[111,21,111,24],[111,25,111,28],[111,29,111,32],[111,33,111,35],[111,2,111,4],[69,7,69,9],[69,10,69,11],[67,1,67,6],[67,7,67,9],[67,10,67,11],[68,1,68,6],[68,7,68,9],[68,10,68,11],[69,1,69,6],[63,1,63,6],[63,7,63,9],[63,10,63,11],[66,7,66,9],[66,10,66,11],[64,1,64,6],[64,7,64,9],[64,10,64,11],[65,1,65,6],[65,7,65,9],[65,10,65,11],[66,1,66,6],[44,2,44,3],[45,2,45,3],[55,5,55,6],[56,5,56,6],[57,5,57,6],[59,2,59,8],[62,1,62,6],[62,7,62,9],[62,10,62,11],[42,32,42,33],[43,32,43,33],[31,2,32,3],[33,2,33,3],[34,2,34,3],[35,2,35,3],[36,2,36,3],[37,2,37,3],[38,2,38,3],[42,2,42,3],[43,2,43,3],[32,32,32,33],[34,13,34,14],[34,15,34,16],[34,17,34,18],[34,20,34,27],[34,32,34,33],[39,2,39,3],[40,2,40,3],[41,2,41,3],[41,15,41,16],[41,17,41,18],[41,20,41,27],[41,32,41,33],[26,20,26,25],[26,29,26,35],[28,4,28,16],[28,20,28,25],[28,29,28,35],[30,2,30,18],[30,20,30,33],[31,4,31,6],[31,7,31,9],[31,10,31,12],[31,29,31,33],[40,32,40,33],[37,32,37,33],[38,32,38,33],[39,13,39,14],[39,15,39,16],[39,17,39,18],[39,20,39,27],[39,32,39,33],[0,8,6,28],[12,1,12,35],[15,1,15,15],[15,17,15,20],[15,22,15,35],[18,1,18,7],[18,9,18,15],[18,17,18,23],[20,1,20,35],[22,4,22,16],[22,20,22,25],[22,29,22,35],[24,20,24,25],[24,30,24,35],[24,4,24,16],[26,4,26,16],[36,13,36,14],[37,13,37,14],[37,15,37,16],[37,17,37,18],[37,20,37,27],[38,13,38,14],[38,20,38,27],[40,13,40,14],[40,15,40,16],[40,17,40,18],[40,20,40,27],[93,1,98,35],[99,1,99,13],[31,20,32,27],[31,28,32,28],[33,20,33,27],[33,32,33,33],[31,13,31,18],[32,13,32,14],[32,15,32,16],[32,17,32,18],[33,13,33,14],[33,15,33,16],[33,17,33,18],[35,20,35,27],[36,20,36,27],[35,13,35,14],[35,15,35,16],[35,17,35,18],[35,32,35,33],[36,15,36,16],[36,17,36,18],[36,32,36,33],[38,15,38,16],[38,17,38,18],[88,18,88,20],[88,21,88,35],[89,2,89,7],[89,8,89,10],[89,11,89,17],[89,18,89,20],[89,21,89,35],[90,2,90,7],[90,8,90,10],[90,11,90,17],[90,18,90,20],[90,21,90,35],[88,2,88,7],[88,8,88,10],[72,7,72,9],[72,10,72,11],[70,1,70,6],[70,7,70,9],[70,10,70,11],[71,1,71,6],[71,7,71,9],[71,10,71,11],[72,1,72,6],[75,7,75,9],[75,10,75,11],[73,1,73,6],[73,7,73,9],[73,10,73,11],[74,1,74,6],[74,7,74,9],[74,10,74,11],[75,1,75,6],[88,11,88,17],[85,11,85,17],[86,11,86,17],[86,18,86,20],[87,11,87,17],[87,18,87,20],[86,21,86,35],[87,21,87,35],[76,1,76,6],[76,7,76,9],[76,10,76,11],[77,1,77,6],[77,7,77,9],[77,10,77,11],[85,8,85,10],[85,2,85,7],[86,2,86,7],[86,8,86,10],[87,2,87,7],[87,8,87,10],[84,8,84,35],[85,18,85,20],[85,21,85,35],[66,24,66,27],[66,28,66,31],[64,12,64,23],[64,24,64,27],[64,28,64,31],[65,12,65,23],[65,24,65,27],[65,28,65,31],[66,12,66,23],[73,24,73,27],[73,28,73,31],[71,12,71,23],[71,24,71,27],[71,28,71,31],[72,12,72,23],[72,24,72,27],[72,28,72,31],[73,12,73,23],[74,12,74,23],[74,24,74,27],[74,28,74,31],[70,12,70,23],[70,24,70,27],[70,28,70,31],[76,24,76,27],[76,28,76,31],[77,12,77,23],[77,24,77,27],[77,28,77,31],[80,13,80,14],[75,12,75,23],[75,24,75,27],[75,28,75,31],[76,12,76,23],[44,32,44,33],[45,32,45,33],[49,21,49,35],[50,21,50,35],[51,21,51,35],[52,21,52,35],[63,24,63,27],[63,28,63,31],[55,23,55,24],[57,23,57,28],[59,23,59,28],[62,12,62,23],[62,24,62,27],[62,28,62,31],[63,12,63,23],[50,12,50,14],[51,12,51,14],[52,12,52,14],[43,15,43,16],[43,17,43,18],[44,13,44,14],[44,15,44,16],[44,17,44,18],[45,15,45,16],[45,17,45,18],[41,13,41,14],[42,13,42,14],[42,15,42,16],[42,17,42,18],[42,20,42,27],[43,13,43,14],[43,20,43,27],[45,13,45,14],[49,12,49,14],[44,20,44,27],[69,24,69,27],[69,28,69,31],[67,12,67,23],[67,24,67,27],[67,28,67,31],[68,12,68,23],[68,24,68,27],[68,28,68,31],[69,12,69,23]]}
[null,null,null,null,null,null,null,null,"FORMULÁRIO  DE COTAÇÃO"]
[]
[]
[]
[]
[]
[]
[]
[null,"ORIENTAÇÕES PARA PREENCHIMENTO"]
[null,"Os campos marcados com asterisco (*) são de preenchimento obrigatório."]
[null,"Para seleção dos produtos da operadora, marcar na lista da página 2 deste formulário."]
[]
[null,"DADOS DA CORRETORA"]
[]
[null,"Nome da Corretora *",null,null,null,null,null,null,null,null,null,null,null,null,null,null,null,"CPF do Corretor",null,null,null,null,"Nome completo do Corretor"]
[null,"ROTA CASCAVEL CORRETORA DE SEGUROS",null,null,null,null,null,null,null,null,null,null,null,null,null,null,null,"054.866.729-26",null,null,null,null,"Paula Angelica Alves dos Santos"]
[]
[null,"Agenciamento (%) *",null,null,null,null,null,null,null,"Comissão Vitalícia (%) *",null,null,null,null,null,null,null,"Spread (%) *"]
[null,1,null,null,null,null,null,null,null,0.04,null,null,null,null,null,null,null,0]
[]
[null,"DADOS DA EMPRESA PROPONENTE"]
[]
[null,"Razão Social: *",null,null,null,null,null,null,null,null,null,null,null,null,null,null,null,null,"CNPJ: * ",null,null,null,null,null,null,null,null,"CNAE: *"]
[]
[null,"Logradouro: *",null,null,null,null,null,null,null,null,null,null,null,null,null,null,null,null,"Número: *",null,null,null,null,null,null,null,null,"Complemento:"]
[]
[null,"Município: *",null,null,null,null,null,null,null,null,null,null,null,null,null,null,null,null,"UF: *",null,"PR - Paraná",null,null,null,null,null,null,"CEP: *"]
[]
[null,"Contato: ",null,null,null,null,null,null,null,null,null,null,null,null,null,null,null,null,"Cargo:",null,null,null,null,null,null,null,null,"Email:"]
[]
[null,null,"DISTRIBUIÇÃO POR SEXO/FAIXA ETÁRIA *",null,null,null,null,null,null,null,null,null,null,null,null,null,null,null,null,null,"DISTRIBUIÇÃO GEOGRÁFICA DOS BENEFICIÁRIOS *"]
[null,null,"FAIXA\nETÁRIA",null,"TITULARES",null,null,"DEPENDENTES",null,null,"AGREGADOS",null,null,"TOTAL",null,null,null,null,null,null,"MUNICÍPIO",null,null,null,null,null,null,null,"UF","QUANTIDADE"]
[null,null,null,null,"Masc.","Fem.","S","Masc.","Fem.","S","Masc.","Fem.","S","Masc.",null,"Fem.",null,"∑",null,null,null,null,null,null,null,null,null,null,null,"TIT.","DEP.","AGR.","∑"]
[null,null,"0-18",null,null,null,{"$f":"SUM(E34:F34)","v":0},null,null,{"$f":"SUM(H34:I34)","v":0},null,null,{"$f":"SUM(K34:L34)","v":0},{"$f":"E34+H34+K34","v":0},null,{"$f":"F34+I34+L34","v":0},null,{"$f":"N34+P34","v":0},null,null,null,null,null,null,null,null,null,null,null,{"$f":"G46","v":0},{"$f":"J46","v":0},{"$f":"M46","v":0},{"$f":"SUM(AD34:AF34)","v":0}]
[null,null,"19-23",null,null,null,0,null,null,0,null,null,0,0,null,0,null,0,null,null,null,null,null,null,null,null,null,null,null,null,null,null,0]
[null,null,"24-28",null,null,null,0,null,null,0,null,null,0,0,null,0,null,0,null,null,null,null,null,null,null,null,null,null,null,null,null,null,0]
[null,null,"29-33",null,null,null,0,null,null,0,null,null,0,0,null,0,null,0,null,null,null,null,null,null,null,null,null,null,null,null,null,null,0]
[null,null,"34-38",null,null,null,0,null,null,0,null,null,0,0,null,0,null,0,null,null,null,null,null,null,null,null,null,null,null,null,null,null,0]
[null,null,"39-43",null,null,null,0,null,null,0,null,null,0,0,null,0,null,0,null,null,null,null,null,null,null,null,null,null,null,null,null,null,0]
[null,null,"44-48",null,null,null,0,null,null,0,null,null,0,0,null,0,null,0,null,null,null,null,null,null,null,null,null,null,null,null,null,null,0]
[null,null,"49-53",null,null,null,0,null,null,0,null,null,0,0,null,0,null,0,null,null,null,null,null,null,null,null,null,null,null,null,null,null,0]
[null,null,"54-58",null,null,null,0,null,null,0,null,null,0,0,null,0,null,0,null,null,null,null,null,null,null,null,null,null,null,null,null,null,0]
[null,null,"59 ou +",null,null,null,0,null,null,0,null,null,0,0,null,0,null,0,null,null,null,null,null,null,null,null,null,null,null,null,null,null,0]
[null,null,"59-67",null,null,null,0,null,null,0,null,null,0,0,null,0,null,0,null,null,null,null,null,null,null,null,null,null,null,null,null,null,0]
[null,null,"68 ou +",null,null,null,0,null,null,0,null,null,0,0,null,0,null,0,null,null,null,null,null,null,null,null,null,null,null,null,null,null,0]
[null,null,"Total",null,{"$f":"SUM(E34:E43)","v":0},0,0,0,0,0,0,0,0,0,null,{"$f":"SUM(P34:P43)","v":0},null,0,null,null,null,null,null,null,null,null,null,null,null,{"$f":"SUM(AD34:AD43)","v":0},0,0,0]
[]
[null,"QUESTIONÁRIO DE AVALIAÇÃO DO PERFIL DE COTAÇÃO"]
[null,"Como será o critério de custeio da empresa do plano de saúde para:"]
[null,null,"Mensalidade para os Titulares?",null,null,null,null,null,null,null,null,null,"Haverá",null,null,null,{"$f":"IF(M50=\"HAVERÁ\",\"Informar modelo pretendido:\",\"\")","v":"Informar modelo pretendido:"}]
[null,null,"Coparticipação para os Titulares?",null,null,null,null,null,null,null,null,null,"Haverá",null,null,null,"Informar modelo pretendido:"]
[null,null,"Mensalidade para os Dependentes e/ou Agregados?",null,null,null,null,null,null,null,null,null,"Haverá",null,null,null,"Informar modelo pretendido:"]
[null,null,"Coparticipação para os Dependentes e/ou Agregados?",null,null,null,null,null,null,null,null,null,"Haverá",null,null,null,"Informar modelo pretendido:"]
[]
[null,"Adesão será compulsória?",null,null,null,null,null,null,null,null,null,"Existem colaboradores na condição (informar quantidade): ",null,null,null,null,null,null,null,null,null,null,"Existem tercerizados na solicitação? *",null,null,null,null,null,null,null,"Distribuição etária desejada:*"]
[null,null,"Titulares *",null,null,"NÃO",null,null,null,null,null,null,null,null,"Afastados",null,null,null,null,null,null,null,{"$f":"IF(X55=\"SIM\",\"Quanto são?\",\"\")","v":""},"NÃO",null,null,null,null,null,null,{"$f":"IF(AF60=\"SIM\",\"Quanto são?\",\"\")","v":""},"X","10 faixas etárias"]
[null,null,"Dependentes*",null,null,"NÃO",null,null,null,null,null,null,null,null,"Gestantes",null,null,null,null,null,null,null,null,{"$f":"IF(X56=\"SIM\",\"Quanto são?\",\"\")","v":""},null,null,null,null,null,null,{"$f":"IF(AF58=\"SIM\",\"Quanto são?\",\"\")","v":""},null,"4 faixas etárias"]
[null,null,"Agregados *",null,null,"NÃO",null,null,null,null,null,null,null,null,"Em tratamento de alta complexidade",null,null,null,null,null,null,null,{"$f":"IF(X57=\"SIM\",\"Quanto são?\",\"\")","v":""},null,null,null,null,null,null,null,{"$f":"IF(AF61=\"SIM\",\"Quanto são?\",\"\")","v":""},null,"3 faixas etárias"]
[null,null,{"$f":"IF(COUNTIF((F56:G58),\"SIM\"),\"NOTA! INFORMAR ESTIMATIVA DE ADESÃO\",\"\")","v":""},null,null,null,null,null,null,null,null,null,null,null,"Em internação domiciliar",null,null,null,null,null,null,null,null,{"$f":"IF(X56=\"SIM\",\"Como será o critério de custeio?\",\"\")","v":""},null,null,null,null,null,null,null,null,"Per capíta"]
[null,null,null,null,null,null,null,null,null,null,null,null,null,null,"Em internação hospitalar"]
[]
[null,"Condições dos beneficiários da proposta",null,null,null,null,null,null,null,null,{"$f":"IF((COUNTBLANK(N56:N60))<5,\"NOTA! OBRIGATÓRIO PREENCHER EM FUNÇÃO DA RESPOSTA ACIMA\",\"\")","v":""}]
[null,"Tipificação",null,null,null,null,null,"Idade Atual",null,null,"Sexo",null,"CID",null,null,null,null,null,null,null,null,null,null,null,"Data de início",null,null,null,"Data de término previsto"]
[]
[]
[]
[]
[]
[]
[]
[]
[]
[]
[]
[]
[]
[]
[]
[]
[null,"HISTÓRICO DO PLANO DE SAÚDE DO PROPONENTE"]
[null,"Possui histórico que possa compartilhar suas informações?",null,null,null,null,null,null,null,null,null,null,null,"NÃO",null,null,{"$f":"IF(N81=\"sim\",\"NOTA: Obrigatório preencher as informações abaixo\",\"\")","v":""}]
[]
[null,"Qual a sinistralidade atual?"]
[]
[null,"Sobre os produtos atuais:"]
[null,null,"Nome da Operadora",null,null,null,null,null,"Nº Registro ANS",null,null,"Nome do produto",null,null,null,null,null,null,"Acomodação",null,null,"Condição de preço praticada e demais particularidades"]
[]
[]
[]
[]
[]
[]
[null,"OUTRAS INFORMAÇÕES RELEVANTES PARA COTAÇÃO"]
[]
[]
[]
[]
[]
[]
[]
[null,"PRODUTOS A SEREM COTADOS"]
[null,"Lista de produtos ativos em 04/2024, marcar com um X na primeira coluna."]
[]
[null,null,{"$f":"'Praça SempreVida'!C2","v":"Hospital Marechal Cândido Rondon S/A"}]
[null,null,"Nº Registro",null,null,"Nome Comercial",null,null,null,null,null,null,null,null,"Contratação",null,null,null,"Segmentação",null,null,"Abrangência",null,null,null,"Fator Moderador",null,null,null,"Acomodação",null,null,null,"Reembolso"]
[null,null,{"$f":"'Praça SempreVida'!A2","v":495075235},null,null,{"$f":"'Praça SempreVida'!B2","v":"CP AMBULATORIAL MCR QC CE"},null,null,null,null,null,null,null,null,{"$f":"'Praça SempreVida'!D2","v":"Coletivo empresarial"},null,null,null,{"$f":"'Praça SempreVida'!E2","v":"Ambulatorial"},null,null,{"$f":"'Praça SempreVida'!F2","v":"Grupo de municípios"},null,null,null,{"$f":"'Praça SempreVida'!G2","v":"Básica/CPB (Terapia)"},null,null,null,{"$f":"'Praça SempreVida'!H2","v":"Não se Aplica"},null,null,null,{"$f":"'Praça SempreVida'!I2","v":"Ausente"}]
[null,null,{"$f":"'Praça SempreVida'!A3","v":495075235},null,null,{"$f":"'Praça SempreVida'!B3","v":"CP AMBULATORIAL MCR QC CE"},null,null,null,null,null,null,null,null,{"$f":"'Praça SempreVida'!D3","v":"Coletivo empresarial"},null,null,null,{"$f":"'Praça SempreVida'!E3","v":"Ambulatorial"},null,null,{"$f":"'Praça SempreVida'!F3","v":"Grupo de municípios"},null,null,null,{"$f":"'Praça SempreVida'!G3","v":"Completa/CP"},null,null,null,{"$f":"'Praça SempreVida'!H3","v":"Não se Aplica"},null,null,null,{"$f":"'Praça SempreVida'!I3","v":"Ausente"}]
[null,null,{"$f":"'Praça SempreVida'!A4","v":495078230},null,null,{"$f":"'Praça SempreVida'!B4","v":"CP VITAL MCR COM OBS QC CE"},null,null,null,null,null,null,null,null,{"$f":"'Praça SempreVida'!D4","v":"Coletivo empresarial"},null,null,null,{"$f":"'Praça SempreVida'!E4","v":"A + H c/ obst."},null,null,{"$f":"'Praça SempreVida'!F4","v":"Grupo de municípios"},null,null,null,{"$f":"'Praça SempreVida'!G4","v":"Básica/CPB (Terapia)"},null,null,null,{"$f":"'Praça SempreVida'!H4","v":"Coletiva"},null,null,null,{"$f":"'Praça SempreVida'!I4","v":"Ausente"}]
[null,null,{"$f":"'Praça SempreVida'!A5","v":495078230},null,null,{"$f":"'Praça SempreVida'!B5","v":"CP VITAL MCR COM OBS QC CE"},null,null,null,null,null,null,null,null,{"$f":"'Praça SempreVida'!D5","v":"Coletivo empresarial"},null,null,null,{"$f":"'Praça SempreVida'!E5","v":"A + H c/ obst."},null,null,{"$f":"'Praça SempreVida'!F5","v":"Grupo de municípios"},null,null,null,{"$f":"'Praça SempreVida'!G5","v":"Completa/CP"},null,null,null,{"$f":"'Praça SempreVida'!H5","v":"Coletiva"},null,null,null,{"$f":"'Praça SempreVida'!I5","v":"Ausente"}]
[null,null,{"$f":"'Praça SempreVida'!A6","v":495073239},null,null,{"$f":"'Praça SempreVida'!B6","v":"CP VITAL MCR COM OBS QP CE"},null,null,null,null,null,null,null,null,{"$f":"'Praça SempreVida'!D6","v":"Coletivo empresarial"},null,null,null,{"$f":"'Praça SempreVida'!E6","v":"A + H c/ obst."},null,null,{"$f":"'Praça SempreVida'!F6","v":"Grupo de municípios"},null,null,null,{"$f":"'Praça SempreVida'!G6","v":"Básica/CPB (Terapia)"},null,null,null,{"$f":"'Praça SempreVida'!H6","v":"Individual"},null,null,null,{"$f":"'Praça SempreVida'!I6","v":"Ausente"}]
[null,null,{"$f":"'Praça SempreVida'!A7","v":495073239},null,null,{"$f":"'Praça SempreVida'!B7","v":"CP VITAL MCR COM OBS QP CE"},null,null,null,null,null,null,null,null,{"$f":"'Praça SempreVida'!D7","v":"Coletivo empresarial"},null,null,null,{"$f":"'Praça SempreVida'!E7","v":"A + H c/ obst."},null,null,{"$f":"'Praça SempreVida'!F7","v":"Grupo de municípios"},null,null,null,{"$f":"'Praça SempreVida'!G7","v":"Completa/CP"},null,null,null,{"$f":"'Praça SempreVida'!H7","v":"Individual"},null,null,null,{"$f":"'Praça SempreVida'!I7","v":"Ausente"}]
[null,null,{"$f":"'Praça SempreVida'!A8","v":495070234},null,null,{"$f":"'Praça SempreVida'!B8","v":"CP IDEAL MCR COM OBS QC CE"},null,null,null,null,null,null,null,null,{"$f":"'Praça SempreVida'!D8","v":"Coletivo empresarial"},null,null,null,{"$f":"'Praça SempreVida'!E8","v":"A + H c/ obst."},null,null,{"$f":"'Praça SempreVida'!F8","v":"Grupo de municípios"},null,null,null,{"$f":"'Praça SempreVida'!G8","v":"Básica/CPB (Terapia)"},null,null,null,{"$f":"'Praça SempreVida'!H8","v":"Coletiva"},null,null,null,{"$f":"'Praça SempreVida'!I8","v":"Ausente"}]
[null,null,{"$f":"'Praça SempreVida'!A9","v":495070234},null,null,{"$f":"'Praça SempreVida'!B9","v":"CP IDEAL MCR COM OBS QC CE"},null,null,null,null,null,null,null,null,{"$f":"'Praça SempreVida'!D9","v":"Coletivo empresarial"},null,null,null,{"$f":"'Praça SempreVida'!E9","v":"A + H c/ obst."},null,null,{"$f":"'Praça SempreVida'!F9","v":"Grupo de municípios"},null,null,null,{"$f":"'Praça SempreVida'!G9","v":"Completa/CP"},null,null,null,{"$f":"'Praça SempreVida'!H9","v":"Coletiva"},null,null,null,{"$f":"'Praça SempreVida'!I9","v":"Ausente"}]
[null,null,{"$f":"'Praça SempreVida'!A10","v":495067234},null,null,{"$f":"'Praça SempreVida'!B10","v":"CP IDEAL MCR COM OBS QP CE"},null,null,null,null,null,null,null,null,{"$f":"'Praça SempreVida'!D10","v":"Coletivo empresarial"},null,null,null,{"$f":"'Praça SempreVida'!E10","v":"A + H c/ obst."},null,null,{"$f":"'Praça SempreVida'!F10","v":"Grupo de municípios"},null,null,null,{"$f":"'Praça SempreVida'!G10","v":"Básica/CPB (Terapia)"},null,null,null,{"$f":"'Praça SempreVida'!H10","v":"Individual"},null,null,null,{"$f":"'Praça SempreVida'!I10","v":"Ausente"}]
[null,null,{"$f":"'Praça SempreVida'!A11","v":495067234},null,null,{"$f":"'Praça SempreVida'!B11","v":"CP IDEAL MCR COM OBS QP CE"},null,null,null,null,null,null,null,null,{"$f":"'Praça SempreVida'!D11","v":"Coletivo empresarial"},null,null,null,{"$f":"'Praça SempreVida'!E11","v":"A + H c/ obst."},null,null,{"$f":"'Praça SempreVida'!F11","v":"Grupo de municípios"},null,null,null,{"$f":"'Praça SempreVida'!G11","v":"Completa/CP"},null,null,null,{"$f":"'Praça SempreVida'!H11","v":"Individual"},null,null,null,{"$f":"'Praça SempreVida'!I11","v":"Ausente"}]
[null,null,{"$f":"'Praça SempreVida'!A12","v":498423244},null,null,{"$f":"'Praça SempreVida'!B12","v":"CP IDEAL MCR SEM OBS QC CE"},null,null,null,null,null,null,null,null,{"$f":"'Praça SempreVida'!D12","v":"Coletivo empresarial"},null,null,null,{"$f":"'Praça SempreVida'!E12","v":"A + H s/ obst."},null,null,{"$f":"'Praça SempreVida'!F12","v":"Grupo de municípios"},null,null,null,{"$f":"'Praça SempreVida'!G12","v":"Básica/CPB (Terapia)"},null,null,null,{"$f":"'Praça SempreVida'!H12","v":"Coletiva"},null,null,null,{"$f":"'Praça SempreVida'!I12","v":"Ausente"}]
[null,null,{"$f":"'Praça SempreVida'!A13","v":498423244},null,null,{"$f":"'Praça SempreVida'!B13","v":"CP IDEAL MCR SEM OBS QC CE"},null,null,null,null,null,null,null,null,{"$f":"'Praça SempreVida'!D13","v":"Coletivo empresarial"},null,null,null,{"$f":"'Praça SempreVida'!E13","v":"A + H s/ obst."},null,null,{"$f":"'Praça SempreVida'!F13","v":"Grupo de municípios"},null,null,null,{"$f":"'Praça SempreVida'!G13","v":"Completa/CP"},null,null,null,{"$f":"'Praça SempreVida'!H13","v":"Coletiva"},null,null,null,{"$f":"'Praça SempreVida'!I13","v":"Ausente"}]
[null,null,{"$f":"'Praça SempreVida'!A14","v":498422246},null,null,{"$f":"'Praça SempreVida'!B14","v":"CP IDEAL MCR SEM OBS QP CE"},null,null,null,null,null,null,null,null,{"$f":"'Praça SempreVida'!D14","v":"Coletivo empresarial"},null,null,null,{"$f":"'Praça SempreVida'!E14","v":"A + H s/ obst."},null,null,{"$f":"'Praça SempreVida'!F14","v":"Grupo de municípios"},null,null,null,{"$f":"'Praça SempreVida'!G14","v":"Básica/CPB (Terapia)"},null,null,null,{"$f":"'Praça SempreVida'!H14","v":"Individual"},null,null,null,{"$f":"'Praça SempreVida'!I14","v":"Ausente"}]
[null,null,{"$f":"'Praça SempreVida'!A15","v":498422246},null,null,{"$f":"'Praça SempreVida'!B15","v":"CP IDEAL MCR SEM OBS QP CE"},null,null,null,null,null,null,null,null,{"$f":"'Praça SempreVida'!D15","v":"Coletivo empresarial"},null,null,null,{"$f":"'Praça SempreVida'!E15","v":"A + H s/ obst."},null,null,{"$f":"'Praça SempreVida'!F15","v":"Grupo de municípios"},null,null,null,{"$f":"'Praça SempreVida'!G15","v":"Completa/CP"},null,null,null,{"$f":"'Praça SempreVida'!H15","v":"Individual"},null,null,null,{"$f":"'Praça SempreVida'!I15","v":"Ausente"}]
[null,null,{"$f":"'Praça SempreVida'!A16","v":495065238},null,null,{"$f":"'Praça SempreVida'!B16","v":"CP SUPERIOR OESTE PR COM OBS QC CE"},null,null,null,null,null,null,null,null,{"$f":"'Praça SempreVida'!D16","v":"Coletivo empresarial"},null,null,null,{"$f":"'Praça SempreVida'!E16","v":"A + H c/ obst."},null,null,{"$f":"'Praça SempreVida'!F16","v":"Grupo de municípios"},null,null,null,{"$f":"'Praça SempreVida'!G16","v":"Básica/CPB (Terapia)"},null,null,null,{"$f":"'Praça SempreVida'!H16","v":"Coletiva"},null,null,null,{"$f":"'Praça SempreVida'!I16","v":"Ausente"}]
[null,null,{"$f":"'Praça SempreVida'!A17","v":495065238},null,null,{"$f":"'Praça SempreVida'!B17","v":"CP SUPERIOR OESTE PR COM OBS QC CE"},null,null,null,null,null,null,null,null,{"$f":"'Praça SempreVida'!D17","v":"Coletivo empresarial"},null,null,null,{"$f":"'Praça SempreVida'!E17","v":"A + H c/ obst."},null,null,{"$f":"'Praça SempreVida'!F17","v":"Grupo de municípios"},null,null,null,{"$f":"'Praça SempreVida'!G17","v":"Completa/CP"},null,null,null,{"$f":"'Praça SempreVida'!H17","v":"Coletiva"},null,null,null,{"$f":"'Praça SempreVida'!I17","v":"Ausente"}]
[null,null,{"$f":"'Praça SempreVida'!A18","v":495063231},null,null,{"$f":"'Praça SempreVida'!B18","v":"CP SUPERIOR OESTE PR COM OBS QP CE"},null,null,null,null,null,null,null,null,{"$f":"'Praça SempreVida'!D18","v":"Coletivo empresarial"},null,null,null,{"$f":"'Praça SempreVida'!E18","v":"A + H c/ obst."},null,null,{"$f":"'Praça SempreVida'!F18","v":"Grupo de municípios"},null,null,null,{"$f":"'Praça SempreVida'!G18","v":"Básica/CPB (Terapia)"},null,null,null,{"$f":"'Praça SempreVida'!H18","v":"Individual"},null,null,null,{"$f":"'Praça SempreVida'!I18","v":"Ausente"}]
[null,null,{"$f":"'Praça SempreVida'!A19","v":495063231},null,null,{"$f":"'Praça SempreVida'!B19","v":"CP SUPERIOR OESTE PR COM OBS QP CE"},null,null,null,null,null,null,null,null,{"$f":"'Praça SempreVida'!D19","v":"Coletivo empresarial"},null,null,null,{"$f":"'Praça SempreVida'!E19","v":"A + H c/ obst."},null,null,{"$f":"'Praça SempreVida'!F19","v":"Grupo de municípios"},null,null,null,{"$f":"'Praça SempreVida'!G19","v":"Completa/CP"},null,null,null,{"$f":"'Praça SempreVida'!H19","v":"Individual"},null,null,null,{"$f":"'Praça SempreVida'!I19","v":"Ausente"}]
[null,null,{"$f":"'Praça SempreVida'!A20","v":498424242},null,null,{"$f":"'Praça SempreVida'!B20","v":"CP SUPERIOR OESTE PR SEM OBS QC CE"},null,null,null,null,null,null,null,null,{"$f":"'Praça SempreVida'!D20","v":"Coletivo empresarial"},null,null,null,{"$f":"'Praça SempreVida'!E20","v":"A + H s/ obst."},null,null,{"$f":"'Praça SempreVida'!F20","v":"Grupo de municípios"},null,null,null,{"$f":"'Praça SempreVida'!G20","v":"Básica/CPB (Terapia)"},null,null,null,{"$f":"'Praça SempreVida'!H20","v":"Coletiva"},null,null,null,{"$f":"'Praça SempreVida'!I20","v":"Ausente"}]
[null,null,{"$f":"'Praça SempreVida'!A21","v":498424242},null,null,{"$f":"'Praça SempreVida'!B21","v":"CP SUPERIOR OESTE PR SEM OBS QC CE"},null,null,null,null,null,null,null,null,{"$f":"'Praça SempreVida'!D21","v":"Coletivo empresarial"},null,null,null,{"$f":"'Praça SempreVida'!E21","v":"A + H s/ obst."},null,null,{"$f":"'Praça SempreVida'!F21","v":"Grupo de municípios"},null,null,null,{"$f":"'Praça SempreVida'!G21","v":"Completa/CP"},null,null,null,{"$f":"'Praça SempreVida'!H21","v":"Coletiva"},null,null,null,{"$f":"'Praça SempreVida'!I21","v":"Ausente"}]
[null,null,{"$f":"'Praça SempreVida'!A22","v":498421248},null,null,{"$f":"'Praça SempreVida'!B22","v":"CP SUPERIOR OESTE PR SEM OBS QP CE"},null,null,null,null,null,null,null,null,{"$f":"'Praça SempreVida'!D22","v":"Coletivo empresarial"},null,null,null,{"$f":"'Praça SempreVida'!E22","v":"A + H s/ obst."},null,null,{"$f":"'Praça SempreVida'!F22","v":"Grupo de municípios"},null,null,null,{"$f":"'Praça SempreVida'!G22","v":"Básica/CPB (Terapia)"},null,null,null,{"$f":"'Praça SempreVida'!H22","v":"Individual"},null,null,null,{"$f":"'Praça SempreVida'!I22","v":"Ausente"}]
[null,null,{"$f":"'Praça SempreVida'!A23","v":498421248},null,null,{"$f":"'Praça SempreVida'!B23","v":"CP SUPERIOR OESTE PR SEM OBS QP CE"},null,null,null,null,null,null,null,null,{"$f":"'Praça SempreVida'!D23","v":"Coletivo empresarial"},null,null,null,{"$f":"'Praça SempreVida'!E23","v":"A + H s/ obst."},null,null,{"$f":"'Praça SempreVida'!F23","v":"Grupo de municípios"},null,null,null,{"$f":"'Praça SempreVida'!G23","v":"Completa/CP"},null,null,null,{"$f":"'Praça SempreVida'!H23","v":"Individual"},null,null,null,{"$f":"'Praça SempreVida'!I23","v":"Ausente"}]
[null,null,{"$f":"'Praça SempreVida'!A24","v":495061235},null,null,{"$f":"'Praça SempreVida'!B24","v":"CP PREMIUM NACIONAL OPR COM OBS QC CE"},null,null,null,null,null,null,null,null,{"$f":"'Praça SempreVida'!D24","v":"Coletivo empresarial"},null,null,null,{"$f":"'Praça SempreVida'!E24","v":"A + H c/ obst."},null,null,{"$f":"'Praça SempreVida'!F24","v":"Nacional"},null,null,null,{"$f":"'Praça SempreVida'!G24","v":"Básica/CPB (Terapia)"},null,null,null,{"$f":"'Praça SempreVida'!H24","v":"Coletiva"},null,null,null,{"$f":"'Praça SempreVida'!I24","v":"Ausente"}]
[null,null,{"$f":"'Praça SempreVida'!A25","v":495061235},null,null,{"$f":"'Praça SempreVida'!B25","v":"CP PREMIUM NACIONAL OPR COM OBS QC CE"},null,null,null,null,null,null,null,null,{"$f":"'Praça SempreVida'!D25","v":"Coletivo empresarial"},null,null,null,{"$f":"'Praça SempreVida'!E25","v":"A + H c/ obst."},null,null,{"$f":"'Praça SempreVida'!F25","v":"Nacional"},null,null,null,{"$f":"'Praça SempreVida'!G25","v":"Completa/CP"},null,null,null,{"$f":"'Praça SempreVida'!H25","v":"Coletiva"},null,null,null,{"$f":"'Praça SempreVida'!I25","v":"Ausente"}]
[null,null,{"$f":"'Praça SempreVida'!A26","v":495059233},null,null,{"$f":"'Praça SempreVida'!B26","v":"CP PREMIUM NACIONAL OPR COM OBS QP CE"},null,null,null,null,null,null,null,null,{"$f":"'Praça SempreVida'!D26","v":"Coletivo empresarial"},null,null,null,{"$f":"'Praça SempreVida'!E26","v":"A + H c/ obst."},null,null,{"$f":"'Praça SempreVida'!F26","v":"Nacional"},null,null,null,{"$f":"'Praça SempreVida'!G26","v":"Básica/CPB (Terapia)"},null,null,null,{"$f":"'Praça SempreVida'!H26","v":"Individual"},null,null,null,{"$f":"'Praça SempreVida'!I26","v":"Ausente"}]
[null,null,{"$f":"'Praça SempreVida'!A27","v":495059233},null,null,{"$f":"'Praça SempreVida'!B27","v":"CP PREMIUM NACIONAL OPR COM OBS QP CE"},null,null,null,null,null,null,null,null,{"$f":"'Praça SempreVida'!D27","v":"Coletivo empresarial"},null,null,null,{"$f":"'Praça SempreVida'!E27","v":"A + H c/ obst."},null,null,{"$f":"'Praça SempreVida'!F27","v":"Nacional"},null,null,null,{"$f":"'Praça SempreVida'!G27","v":"Completa/CP"},null,null,null,{"$f":"'Praça SempreVida'!H27","v":"Individual"},null,null,null,{"$f":"'Praça SempreVida'!I27","v":"Ausente"}]
[null,null,{"$f":"'Praça SempreVida'!A28","v":495076233},null,null,{"$f":"'Praça SempreVida'!B28","v":"CP AMBULATORIAL MCR QC CA"},null,null,null,null,null,null,null,null,{"$f":"'Praça SempreVida'!D28","v":"Coletivo por adesão"},null,null,null,{"$f":"'Praça SempreVida'!E28","v":"Ambulatorial"},null,null,{"$f":"'Praça SempreVida'!F28","v":"Grupo de municípios"},null,null,null,{"$f":"'Praça SempreVida'!G28","v":"Básica/CPB (Terapia)"},null,null,null,{"$f":"'Praça SempreVida'!H28","v":"Não se Aplica"},null,null,null,{"$f":"'Praça SempreVida'!I28","v":"Ausente"}]
[null,null,{"$f":"'Praça SempreVida'!A29","v":495076233},null,null,{"$f":"'Praça SempreVida'!B29","v":"CP AMBULATORIAL MCR QC CA"},null,null,null,null,null,null,null,null,{"$f":"'Praça SempreVida'!D29","v":"Coletivo por adesão"},null,null,null,{"$f":"'Praça SempreVida'!E29","v":"Ambulatorial"},null,null,{"$f":"'Praça SempreVida'!F29","v":"Grupo de municípios"},null,null,null,{"$f":"'Praça SempreVida'!G29","v":"Completa/CP"},null,null,null,{"$f":"'Praça SempreVida'!H29","v":"Não se Aplica"},null,null,null,{"$f":"'Praça SempreVida'!I29","v":"Ausente"}]
[null,null,{"$f":"'Praça SempreVida'!A30","v":495079238},null,null,{"$f":"'Praça SempreVida'!B30","v":"CP VITAL MCR COM OBS QC CA"},null,null,null,null,null,null,null,null,{"$f":"'Praça SempreVida'!D30","v":"Coletivo por adesão"},null,null,null,{"$f":"'Praça SempreVida'!E30","v":"A + H c/ obst."},null,null,{"$f":"'Praça SempreVida'!F30","v":"Grupo de municípios"},null,null,null,{"$f":"'Praça SempreVida'!G30","v":"Básica/CPB (Terapia)"},null,null,null,{"$f":"'Praça SempreVida'!H30","v":"Coletiva"},null,null,null,{"$f":"'Praça SempreVida'!I30","v":"Ausente"}]
[null,null,{"$f":"'Praça SempreVida'!A31","v":495079238},null,null,{"$f":"'Praça SempreVida'!B31","v":"CP VITAL MCR COM OBS QC CA"},null,null,null,null,null,null,null,null,{"$f":"'Praça SempreVida'!D31","v":"Coletivo por adesão"},null,null,null,{"$f":"'Praça SempreVida'!E31","v":"A + H c/ obst."},null,null,{"$f":"'Praça SempreVida'!F31","v":"Grupo de municípios"},null,null,null,{"$f":"'Praça SempreVida'!G31","v":"Completa/CP"},null,null,null,{"$f":"'Praça SempreVida'!H31","v":"Coletiva"},null,null,null,{"$f":"'Praça SempreVida'!I31","v":"Ausente"}]
[null,null,{"$f":"'Praça SempreVida'!A32","v":495072231},null,null,{"$f":"'Praça SempreVida'!B32","v":"CP VITAL MCR COM OBS QP CA"},null,null,null,null,null,null,null,null,{"$f":"'Praça SempreVida'!D32","v":"Coletivo por adesão"},null,null,null,{"$f":"'Praça SempreVida'!E32","v":"A + H c/ obst."},null,null,{"$f":"'Praça SempreVida'!F32","v":"Grupo de municípios"},null,null,null,{"$f":"'Praça SempreVida'!G32","v":"Básica/CPB (Terapia)"},null,null,null,{"$f":"'Praça SempreVida'!H32","v":"Individual"},null,null,null,{"$f":"'Praça SempreVida'!I32","v":"Ausente"}]
[null,null,{"$f":"'Praça SempreVida'!A33","v":495072231},null,null,{"$f":"'Praça SempreVida'!B33","v":"CP VITAL MCR COM OBS QP CA"},null,null,null,null,null,null,null,null,{"$f":"'Praça SempreVida'!D33","v":"Coletivo por adesão"},null,null,null,{"$f":"'Praça SempreVida'!E33","v":"A + H c/ obst."},null,null,{"$f":"'Praça SempreVida'!F33","v":"Grupo de municípios"},null,null,null,{"$f":"'Praça SempreVida'!G33","v":"Completa/CP"},null,null,null,{"$f":"'Praça SempreVida'!H33","v":"Individual"},null,null,null,{"$f":"'Praça SempreVida'!I33","v":"Ausente"}]
[null,null,{"$f":"'Praça SempreVida'!A34","v":495069231},null,null,{"$f":"'Praça SempreVida'!B34","v":"CP IDEAL MCR COM OBS QC CA"},null,null,null,null,null,null,null,null,{"$f":"'Praça SempreVida'!D34","v":"Coletivo por adesão"},null,null,null,{"$f":"'Praça SempreVida'!E34","v":"A + H c/ obst."},null,null,{"$f":"'Praça SempreVida'!F34","v":"Grupo de municípios"},null,null,null,{"$f":"'Praça SempreVida'!G34","v":"Básica/CPB (Terapia)"},null,null,null,{"$f":"'Praça SempreVida'!H34","v":"Coletiva"},null,null,null,{"$f":"'Praça SempreVida'!I34","v":"Ausente"}]
[null,null,{"$f":"'Praça SempreVida'!A35","v":495069231},null,null,{"$f":"'Praça SempreVida'!B35","v":"CP IDEAL MCR COM OBS QC CA"},null,null,null,null,null,null,null,null,{"$f":"'Praça SempreVida'!D35","v":"Coletivo por adesão"},null,null,null,{"$f":"'Praça SempreVida'!E35","v":"A + H c/ obst."},null,null,{"$f":"'Praça SempreVida'!F35","v":"Grupo de municípios"},null,null,null,{"$f":"'Praça SempreVida'!G35","v":"Completa/CP"},null,null,null,{"$f":"'Praça SempreVida'!H35","v":"Coletiva"},null,null,null,{"$f":"'Praça SempreVida'!I35","v":"Ausente"}]
[null,null,{"$f":"'Praça SempreVida'!A36","v":495057237},null,null,{"$f":"'Praça SempreVida'!B36","v":"CP IDEAL MCR COM OBS QP CA"},null,null,null,null,null,null,null,null,{"$f":"'Praça SempreVida'!D36","v":"Coletivo por adesão"},null,null,null,{"$f":"'Praça SempreVida'!E36","v":"A + H c/ obst."},null,null,{"$f":"'Praça SempreVida'!F36","v":"Grupo de municípios"},null,null,null,{"$f":"'Praça SempreVida'!G36","v":"Básica/CPB (Terapia)"},null,null,null,{"$f":"'Praça SempreVida'!H36","v":"Individual"},null,null,null,{"$f":"'Praça SempreVida'!I36","v":"Ausente"}]
[null,null,{"$f":"'Praça SempreVida'!A37","v":495057237},null,null,{"$f":"'Praça SempreVida'!B37","v":"CP IDEAL MCR COM OBS QP CA"},null,null,null,null,null,null,null,null,{"$f":"'Praça SempreVida'!D37","v":"Coletivo por adesão"},null,null,null,{"$f":"'Praça SempreVida'!E37","v":"A + H c/ obst."},null,null,{"$f":"'Praça SempreVida'!F37","v":"Grupo de municípios"},null,null,null,{"$f":"'Praça SempreVida'!G37","v":"Completa/CP"},null,null,null,{"$f":"'Praça SempreVida'!H37","v":"Individual"},null,null,null,{"$f":"'Praça SempreVida'!I37","v":"Ausente"}]
[null,null,{"$f":"'Praça SempreVida'!A38","v":495064230},null,null,{"$f":"'Praça SempreVida'!B38","v":"CP SUPERIOR OESTE PR COM OBS QC CA"},null,null,null,null,null,null,null,null,{"$f":"'Praça SempreVida'!D38","v":"Coletivo por adesão"},null,null,null,{"$f":"'Praça SempreVida'!E38","v":"A + H c/ obst."},null,null,{"$f":"'Praça SempreVida'!F38","v":"Grupo de municípios"},null,null,null,{"$f":"'Praça SempreVida'!G38","v":"Básica/CPB (Terapia)"},null,null,null,{"$f":"'Praça SempreVida'!H38","v":"Coletiva"},null,null,null,{"$f":"'Praça SempreVida'!I38","v":"Ausente"}]
[null,null,{"$f":"'Praça SempreVida'!A39","v":495064230},null,null,{"$f":"'Praça SempreVida'!B39","v":"CP SUPERIOR OESTE PR COM OBS QC CA"},null,null,null,null,null,null,null,null,{"$f":"'Praça SempreVida'!D39","v":"Coletivo por adesão"},null,null,null,{"$f":"'Praça SempreVida'!E39","v":"A + H c/ obst."},null,null,{"$f":"'Praça SempreVida'!F39","v":"Grupo de municípios"},null,null,null,{"$f":"'Praça SempreVida'!G39","v":"Completa/CP"},null,null,null,{"$f":"'Praça SempreVida'!H39","v":"Coletiva"},null,null,null,{"$f":"'Praça SempreVida'!I39","v":"Ausente"}]
[null,null,{"$f":"'Praça SempreVida'!A40","v":495062233},null,null,{"$f":"'Praça SempreVida'!B40","v":"CP SUPERIOR OESTE PR COM OBS QP CA"},null,null,null,null,null,null,null,null,{"$f":"'Praça SempreVida'!D40","v":"Coletivo por adesão"},null,null,null,{"$f":"'Praça SempreVida'!E40","v":"A + H c/ obst."},null,null,{"$f":"'Praça SempreVida'!F40","v":"Grupo de municípios"},null,null,null,{"$f":"'Praça SempreVida'!G40","v":"Básica/CPB (Terapia)"},null,null,null,{"$f":"'Praça SempreVida'!H40","v":"Individual"},null,null,null,{"$f":"'Praça SempreVida'!I40","v":"Ausente"}]
[null,null,{"$f":"'Praça SempreVida'!A41","v":495062233},null,null,{"$f":"'Praça SempreVida'!B41","v":"CP SUPERIOR OESTE PR COM OBS QP CA"},null,null,null,null,null,null,null,null,{"$f":"'Praça SempreVida'!D41","v":"Coletivo por adesão"},null,null,null,{"$f":"'Praça SempreVida'!E41","v":"A + H c/ obst."},null,null,{"$f":"'Praça SempreVida'!F41","v":"Grupo de municípios"},null,null,null,{"$f":"'Praça SempreVida'!G41","v":"Completa/CP"},null,null,null,{"$f":"'Praça SempreVida'!H41","v":"Individual"},null,null,null,{"$f":"'Praça SempreVida'!I41","v":"Ausente"}]
[null,null,{"$f":"'Praça SempreVida'!A42","v":495060237},null,null,{"$f":"'Praça SempreVida'!B42","v":"CP PREMIUM NACIONAL OPR COM OBS QC CA"},null,null,null,null,null,null,null,null,{"$f":"'Praça SempreVida'!D42","v":"Coletivo por adesão"},null,null,null,{"$f":"'Praça SempreVida'!E42","v":"A + H c/ obst."},null,null,{"$f":"'Praça SempreVida'!F42","v":"Nacional"},null,null,null,{"$f":"'Praça SempreVida'!G42","v":"Básica/CPB (Terapia)"},null,null,null,{"$f":"'Praça SempreVida'!H42","v":"Coletiva"},null,null,null,{"$f":"'Praça SempreVida'!I42","v":"Ausente"}]
[null,null,{"$f":"'Praça SempreVida'!A43","v":495060237},null,null,{"$f":"'Praça SempreVida'!B43","v":"CP PREMIUM NACIONAL OPR COM OBS QC CA"},null,null,null,null,null,null,null,null,{"$f":"'Praça SempreVida'!D43","v":"Coletivo por adesão"},null,null,null,{"$f":"'Praça SempreVida'!E43","v":"A + H c/ obst."},null,null,{"$f":"'Praça SempreVida'!F43","v":"Nacional"},null,null,null,{"$f":"'Praça SempreVida'!G43","v":"Completa/CP"},null,null,null,{"$f":"'Praça SempreVida'!H43","v":"Coletiva"},null,null,null,{"$f":"'Praça SempreVida'!I43","v":"Ausente"}]
[null,null,{"$f":"'Praça SempreVida'!A44","v":495058235},null,null,{"$f":"'Praça SempreVida'!B44","v":"CP PREMIUM NACIONAL OPR COM OBS QP CA"},null,null,null,null,null,null,null,null,{"$f":"'Praça SempreVida'!D44","v":"Coletivo por adesão"},null,null,null,{"$f":"'Praça SempreVida'!E44","v":"A + H c/ obst."},null,null,{"$f":"'Praça SempreVida'!F44","v":"Nacional"},null,null,null,{"$f":"'Praça SempreVida'!G44","v":"Básica/CPB (Terapia)"},null,null,null,{"$f":"'Praça SempreVida'!H44","v":"Individual"},null,null,null,{"$f":"'Praça SempreVida'!I44","v":"Ausente"}]
[null,null,{"$f":"'Praça SempreVida'!A45","v":495058235},null,null,{"$f":"'Praça SempreVida'!B45","v":"CP PREMIUM NACIONAL OPR COM OBS QP CA"},null,null,null,null,null,null,null,null,{"$f":"'Praça SempreVida'!D45","v":"Coletivo por adesão"},null,null,null,{"$f":"'Praça SempreVida'!E45","v":"A + H c/ obst."},null,null,{"$f":"'Praça SempreVida'!F45","v":"Nacional"},null,null,null,{"$f":"'Praça SempreVida'!G45","v":"Completa/CP"},null,null,null,{"$f":"'Praça SempreVida'!H45","v":"Individual"},null,null,null,{"$f":"'Praça SempreVida'!I45","v":"Ausente"}]

{"sheet":"Praça SempreVida","index":1,"n_rows":45,"n_cols":9,"rows_kept":45,"cut":false,"hidden":true,"merged":[]}
["Registro do Plano","Nome Comercial","Operadora","Tipo de Contratação","Segmentação","Abrangência","Tipo de Fator Moderador","Tipo de Acomodação","Reembolso (Livre Escolha)"]
[495075235,"CP AMBULATORIAL MCR QC CE","Hospital Marechal Cândido Rondon S/A","Coletivo empresarial","Ambulatorial","Grupo de municípios","Básica/CPB (Terapia)","Não se Aplica","Ausente"]
[495075235,"CP AMBULATORIAL MCR QC CE","Hospital Marechal Cândido Rondon S/A","Coletivo empresarial","Ambulatorial","Grupo de municípios","Completa/CP","Não se Aplica","Ausente"]
[495078230,"CP VITAL MCR COM OBS QC CE","Hospital Marechal Cândido Rondon S/A","Coletivo empresarial","A + H c/ obst.","Grupo de municípios","Básica/CPB (Terapia)","Coletiva","Ausente"]
[495078230,"CP VITAL MCR COM OBS QC CE","Hospital Marechal Cândido Rondon S/A","Coletivo empresarial","A + H c/ obst.","Grupo de municípios","Completa/CP","Coletiva","Ausente"]
[495073239,"CP VITAL MCR COM OBS QP CE","Hospital Marechal Cândido Rondon S/A","Coletivo empresarial","A + H c/ obst.","Grupo de municípios","Básica/CPB (Terapia)","Individual","Ausente"]
[495073239,"CP VITAL MCR COM OBS QP CE","Hospital Marechal Cândido Rondon S/A","Coletivo empresarial","A + H c/ obst.","Grupo de municípios","Completa/CP","Individual","Ausente"]
[495070234,"CP IDEAL MCR COM OBS QC CE","Hospital Marechal Cândido Rondon S/A","Coletivo empresarial","A + H c/ obst.","Grupo de municípios","Básica/CPB (Terapia)","Coletiva","Ausente"]
[495070234,"CP IDEAL MCR COM OBS QC CE","Hospital Marechal Cândido Rondon S/A","Coletivo empresarial","A + H c/ obst.","Grupo de municípios","Completa/CP","Coletiva","Ausente"]
[495067234,"CP IDEAL MCR COM OBS QP CE","Hospital Marechal Cândido Rondon S/A","Coletivo empresarial","A + H c/ obst.","Grupo de municípios","Básica/CPB (Terapia)","Individual","Ausente"]
[495067234,"CP IDEAL MCR COM OBS QP CE","Hospital Marechal Cândido Rondon S/A","Coletivo empresarial","A + H c/ obst.","Grupo de municípios","Completa/CP","Individual","Ausente"]
[498423244,"CP IDEAL MCR SEM OBS QC CE","Hospital Marechal Cândido Rondon S/A","Coletivo empresarial","A + H s/ obst.","Grupo de municípios","Básica/CPB (Terapia)","Coletiva","Ausente"]
[{"$f":"A12","v":498423244},"CP IDEAL MCR SEM OBS QC CE","Hospital Marechal Cândido Rondon S/A","Coletivo empresarial","A + H s/ obst.","Grupo de municípios","Completa/CP","Coletiva","Ausente"]
[498422246,"CP IDEAL MCR SEM OBS QP CE","Hospital Marechal Cândido Rondon S/A","Coletivo empresarial","A + H s/ obst.","Grupo de municípios","Básica/CPB (Terapia)","Individual","Ausente"]
[{"$f":"A14","v":498422246},"CP IDEAL MCR SEM OBS QP CE","Hospital Marechal Cândido Rondon S/A","Coletivo empresarial","A + H s/ obst.","Grupo de municípios","Completa/CP","Individual","Ausente"]
[495065238,"CP SUPERIOR OESTE PR COM OBS QC CE","Hospital Marechal Cândido Rondon S/A","Coletivo empresarial","A + H c/ obst.","Grupo de municípios","Básica/CPB (Terapia)","Coletiva","Ausente"]
[495065238,"CP SUPERIOR OESTE PR COM OBS QC CE","Hospital Marechal Cândido Rondon S/A","Coletivo empresarial","A + H c/ obst.","Grupo de municípios","Completa/CP","Coletiva","Ausente"]
[495063231,"CP SUPERIOR OESTE PR COM OBS QP CE","Hospital Marechal Cândido Rondon S/A","Coletivo empresarial","A + H c/ obst.","Grupo de municípios","Básica/CPB (Terapia)","Individual","Ausente"]
[495063231,"CP SUPERIOR OESTE PR COM OBS QP CE","Hospital Marechal Cândido Rondon S/A","Coletivo empresarial","A + H c/ obst.","Grupo de municípios","Completa/CP","Individual","Ausente"]
[498424242,"CP SUPERIOR OESTE PR SEM OBS QC CE","Hospital Marechal Cândido Rondon S/A","Coletivo empresarial","A + H s/ obst.","Grupo de municípios","Básica/CPB (Terapia)","Coletiva","Ausente"]
[{"$f":"A20","v":498424242},"CP SUPERIOR OESTE PR SEM OBS QC CE","Hospital Marechal Cândido Rondon S/A","Coletivo empresarial","A + H s/ obst.","Grupo de municípios","Completa/CP","Coletiva","Ausente"]
[498421248,"CP SUPERIOR OESTE PR SEM OBS QP CE","Hospital Marechal Cândido Rondon S/A","Coletivo empresarial","A + H s/ obst.","Grupo de municípios","Básica/CPB (Terapia)","Individual","Ausente"]
[{"$f":"A22","v":498421248},"CP SUPERIOR OESTE PR SEM OBS QP CE","Hospital Marechal Cândido Rondon S/A","Coletivo empresarial","A + H s/ obst.","Grupo de municípios","Completa/CP","Individual","Ausente"]
[495061235,"CP PREMIUM NACIONAL OPR COM OBS QC CE","Hospital Marechal Cândido Rondon S/A","Coletivo empresarial","A + H c/ obst.","Nacional","Básica/CPB (Terapia)","Coletiva","Ausente"]
[495061235,"CP PREMIUM NACIONAL OPR COM OBS QC CE","Hospital Marechal Cândido Rondon S/A","Coletivo empresarial","A + H c/ obst.","Nacional","Completa/CP","Coletiva","Ausente"]
[495059233,"CP PREMIUM NACIONAL OPR COM OBS QP CE","Hospital Marechal Cândido Rondon S/A","Coletivo empresarial","A + H c/ obst.","Nacional","Básica/CPB (Terapia)","Individual","Ausente"]
[495059233,"CP PREMIUM NACIONAL OPR COM OBS QP CE","Hospital Marechal Cândido Rondon S/A","Coletivo empresarial","A + H c/ obst.","Nacional","Completa/CP","Individual","Ausente"]
[495076233,"CP AMBULATORIAL MCR QC CA","Hospital Marechal Cândido Rondon S/A","Coletivo por adesão","Ambulatorial","Grupo de municípios","Básica/CPB (Terapia)","Não se Aplica","Ausente"]
[495076233,"CP AMBULATORIAL MCR QC CA","Hospital Marechal Cândido Rondon S/A","Coletivo por adesão","Ambulatorial","Grupo de municípios","Completa/CP","Não se Aplica","Ausente"]
[495079238,"CP VITAL MCR COM OBS QC CA","Hospital Marechal Cândido Rondon S/A","Coletivo por adesão","A + H c/ obst.","Grupo de municípios","Básica/CPB (Terapia)","Coletiva","Ausente"]
[495079238,"CP VITAL MCR COM OBS QC CA","Hospital Marechal Cândido Rondon S/A","Coletivo por adesão","A + H c/ obst.","Grupo de municípios","Completa/CP","Coletiva","Ausente"]
[495072231,"CP VITAL MCR COM OBS QP CA","Hospital Marechal Cândido Rondon S/A","Coletivo por adesão","A + H c/ obst.","Grupo de municípios","Básica/CPB (Terapia)","Individual","Ausente"]
[495072231,"CP VITAL MCR COM OBS QP CA","Hospital Marechal Cândido Rondon S/A","Coletivo por adesão","A + H c/ obst.","Grupo de municípios","Completa/CP","Individual","Ausente"]
[495069231,"CP IDEAL MCR COM OBS QC CA","Hospital Marechal Cândido Rondon S/A","Coletivo por adesão","A + H c/ obst.","Grupo de municípios","Básica/CPB (Terapia)","Coletiva","Ausente"]
[495069231,"CP IDEAL MCR COM OBS QC CA","Hospital Marechal Cândido Rondon S/A","Coletivo por adesão","A + H c/ obst.","Grupo de municípios","Completa/CP","Coletiva","Ausente"]
[495057237,"CP IDEAL MCR COM OBS QP CA","Hospital Marechal Cândido Rondon S/A","Coletivo por adesão","A + H c/ obst.","Grupo de municípios","Básica/CPB (Terapia)","Individual","Ausente"]
[495057237,"CP IDEAL MCR COM OBS QP CA","Hospital Marechal Cândido Rondon S/A","Coletivo por adesão","A + H c/ obst.","Grupo de municípios","Completa/CP","Individual","Ausente"]
[495064230,"CP SUPERIOR OESTE PR COM OBS QC CA","Hospital Marechal Cândido Rondon S/A","Coletivo por adesão","A + H c/ obst.","Grupo de municípios","Básica/CPB (Terapia)","Coletiva","Ausente"]
[495064230,"CP SUPERIOR OESTE PR COM OBS QC CA","Hospital Marechal Cândido Rondon S/A","Coletivo por adesão","A + H c/ obst.","Grupo de municípios","Completa/CP","Coletiva","Ausente"]
[495062233,"CP SUPERIOR OESTE PR COM OBS QP CA","Hospital Marechal Cândido Rondon S/A","Coletivo por adesão","A + H c/ obst.","Grupo de municípios","Básica/CPB (Terapia)","Individual","Ausente"]
[495062233,"CP SUPERIOR OESTE PR COM OBS QP CA","Hospital Marechal Cândido Rondon S/A","Coletivo por adesão","A + H c/ obst.","Grupo de municípios","Completa/CP","Individual","Ausente"]
[495060237,"CP PREMIUM NACIONAL OPR COM OBS QC CA","Hospital Marechal Cândido Rondon S/A","Coletivo por adesão","A + H c/ obst.","Nacional","Básica/CPB (Terapia)","Coletiva","Ausente"]
[495060237,"CP PREMIUM NACIONAL OPR COM OBS QC CA","Hospital Marechal Cândido Rondon S/A","Coletivo por adesão","A + H c/ obst.","Nacional","Completa/CP","Coletiva","Ausente"]
[495058235,"CP PREMIUM NACIONAL OPR COM OBS QP CA","Hospital Marechal Cândido Rondon S/A","Coletivo por adesão","A + H c/ obst.","Nacional","Básica/CPB (Terapia)","Individual","Ausente"]
[495058235,"CP PREMIUM NACIONAL OPR COM OBS QP CA","Hospital Marechal Cândido Rondon S/A","Coletivo por adesão","A + H c/ obst.","Nacional","Completa/CP","Individual","Ausente"]

{"sheet":"INPUTS","index":2,"n_rows":177,"n_cols":9,"rows_kept":177,"cut":false,"hidden":true,"merged":[]}
["CID's",null,"AGENCIAMENTO","COMISSÃO VITALÍCIA","UNIDADE FEDERATIVA",null,"Condição","Acomodação","Sexo"]
["A00 - A09  / Doenças infecciosas intestinais ","SIM","50% + 2%",0,"AC  - Acre ","AC  ","Afastados","Não sei","Não sei"]
["A15 - A19  / Tuberculose ","NÃO","75% + 3%",{"$f":"D2+0.01","v":0.01},"AL  - Alagoas ","AL  ","Gestantes","Enfermaria","Masculino"]
["A20 - A28  / Algumas doenças bacterianas zoonóticas ","NÃO SEI","100% + 5%",0.02,"AM - Amazonas","AM ","Em tratamento de alta complexidade","Apartamento","Feminino"]
["A30 - A49  / Outras doenças bacterianas ","Haverá",null,0.03,"AP  - Amapá ","AP  ","Em internação domiciliar","Ausente"]
["A50 - A64  / Infecções predominantemente sexuais ","Não haverá",null,0.04,"BA - Bahia","BA ","Em internação hospitalar"]
["A65 - A69  / Outras doenças espiroquetas ",null,null,0.05,"CE - Ceará ","CE "]
["A70 - A74  / Outras doenças causadas por clamídias ",null,null,null,"DF - Distrito Federal","DF "]
["A75 - A79  / Riekettsioses ",null,null,null,"ES - Espírito Santo","ES "]
["A80 - A89 / Infecções virais do sistema nervoso central ",null,null,null,"GO - Goiás","GO "]
["A90 - A99  / Febres por arbovírus e febres hemorrágicas virais ",null,null,null,"MA - Maranhão ","MA "]
["B00 - B09  / Infecções virais caracterizados p/ lesões da pele e mucosas ",null,null,null,"MG - Minas Gerais","MG "]
["B15 - B19  / Hepatite viral ",null,null,null,"MS - Mato Grosso do Sul","MS "]
["B20 - B24  / Doenças pelo vírus da imunodeficiência humana (HIV) ",null,null,null,"MT - Mato Grosso","MT "]
["B25 - B34  / Outras doenças por vírus ",null,null,null,"PA  - Pará ","PA  "]
["B35 - B39  / Micoses ",null,null,null,"PB  - Paraíba ","PB  "]
["B40  / Blastomicose ",null,null,null,"PE  - Pernambuco ","PE  "]
["B41 - B49  / Micoses ",null,null,null,"PI - Piauí","PI "]
["B50 - B56  / Doenças devidas a protozoários ",null,null,null,"PR - Paraná","PR "]
["B57  / Doença de Chagas ",null,null,null,"RJ - Rio de Janeiro","RJ "]
["B58 - B64  / Doenças devidas a protozoários ",null,null,null,"RN  - Rio Grande do Norte ","RN  "]
["B90 - B94  / Seqüelas de doenças infecciosas e parasitárias ",null,null,null,"RO  - Rondônia","RO  "]
["C00 - C14  / Neopl. Malignas (os) do lábio, cavidade oral e faringe ",null,null,null,"RR  - Roraima ","RR  "]
["C15 - C26  / Neopl. Malignas (os) dos órgãos digestivos ",null,null,null,"RS - Rio Grande do Sul","RS "]
["C30 - C39  / Do aparelho respiratório e dos órgãos intratorácicos ",null,null,null,"SC - Santa Catarina","SC "]
["C40 - C41  / Neopl. Malignas (os) dos ossos e das cartilagens articulares ",null,null,null,"SE - Sergipe","SE "]
["C43 - C44  / Melanoma e outras (os) neoplasias malignas da pele ",null,null,null,"SP - São Paulo","SP "]
["C45 - C49  / Neopl. Malignas (os) do tecido mesotelial e tecidos moles ",null,null,null,"TO  - Tocantins ","TO  "]
["C50  / Neopl. Malignas (os) da mama "]
["C51 - C58  / Neopl. Malignas (os) dos órgãos genitais femininos "]
["C60 - C63  / Neopl. Malignas (os) dos órgãos genitais masculinos "]
["C64 - C68  / Neopl. Malignas (os) do trato urinário "]
["C69 - C72  / Dos olhos, do encéfalo e de outr/part. Do sist. Nerv. Central "]
["C73 - C75  / Neopl. Malign. Da tiróide e de outras glândulas endócrinas "]
["C76 - C80  / Das localizações ml definid, secundár. e localiz.n/especific. "]
["C81 - C96  / Do tecido linfático, hemotopoético e de tecidos correlatos "]
["C97  / De localizações múltiplas independ. (primárias) "]
["D00 - D09  / Neoplasias (tumores) in situ "]
["D10 - D36  / Neoplasias (tumores) benignas (os) "]
["D45  / Policitemia Vera "]
["D46  / Síndromes mielodisplásicas "]
["C20  / Neoplasma do Reto "]
["D56  / Talassemia "]
["D57  / Transtornos falciformes "]
["D58  / Outras anemias hemolíticas hereditárias "]
["D59  / Anemia hemolítica adquirida "]
["D60 - D64  / Anemias aplásticas e outras anemias "]
["D65 - D69  / Defeitos da coagulação e outras afecções hemorrágicas "]
["D70 - D77  / Outras doenças do sangue e dos órgãos hematopoéticos "]
["D80 - D89  / Alguns transtornos q/compromet. o mecanismo imunitário "]
["E00 - E07  / Transtornos da glândula tireóide "]
["E10 - E14  / Diabetes mellitus – alta "]
["E10 - E14  / Diabetes mellitus – média "]
["E10 - E14  / Diabetes mellitus – baixa "]
["E15 - E16  / Outros transtornos da regulaç. [] da gilcs. e da secr. pancr. intn. "]
["E20 - E35  / Transtornos de outras glândulas endócrinas "]
["E66  / Obesidade Mórbida "]
["F00 - F99  / Transtornos Mentais e Comportamentais "]
["G00 - G09  / Doenças inflamatórias do sistema nervoso "]
["G10 - G13  / Atrofias sistêmicas que afet. principalm. o sist. nerv. central "]
["G20 - G26  / Doenças extrapiramidais e transtornos do movimento "]
["G30 - G32  / Outras doenças degenerativas do sistema nervoso "]
["G35 - G37  / Doenças desmielizantes do sistema nervoso central "]
["G40 - G44  / Transtornos ppisódicos e paroxísticos"]
["G45  / Acidentes vascul. cerebr. insquêmics. transit. e síndr. correlatas "]
["G46  / Síndr. vasculr. cerebr. Q/ocorr. d/doen. cerbrovsc. (160 - 167 +) "]
["G50 - G59  / Transtornos dos nervos, das raízes e dos plexos nervosos "]
["G60 - G64  / Polineuropatias e outros transtornos do sist. nerv. periférico "]
["G70 - G73  / Doenças da junção mioneural e dos músculos "]
["G80 - G83  / Paralisia cerebral e outras síndromes paralíticas "]
["G91  / Hidrocefalia "]
["H15 - H22  / Transtrn. da esclerótica, da córnea, da íris e do corpo ciliar "]
["H25 - H28  / Transtornos do cristalino "]
["H25 - H28  / Transtornos da coróide e da retina "]
["H40 - H42  / Glaucoma "]
["H43 - H45  / Transtornos do humor vítreo e do globo ocular "]
["H46 - H48  / Transtornos do nervo óptico e das vias ópticas "]
["H49 - H52  / Transtrs.ds. múscls. oclrs, /movm. bnclr/ acmdç./ refrç "]
["H 52.1  / Miopia "]
["H53 - H54  / Transtornos visuais e cegueira "]
["H55 - H59  / Outros transtornos do olho e anexos "]
["H60 - H62  / Doenças do ouvido externo "]
["H65 - H75  / Doenças do ouvido médio e da mastóide "]
["H80 - H83  / Doenças do ouvido interno "]
["H90 - H95  / Outros transtornos do ouvido "]
["I00 - I02  / Febre reumática aguda "]
["I05 - I09  / Doenças reumáticas crônicas do coração "]
["I10 - I15  / Doenças hipertensivas "]
["I20 - I25  / Doenças isquêmicas do coração "]
["I26 - I28  / Doença cardíaca pulmonar e doenças da circ. pulmonar "]
["I30 - I52  / Outras formas de doença do coração "]
["I20 - I25  / Doenças isquêmicas do coração "]
["I30 - I52  / Outras formas de doenças do coração "]
["I60 - I69  / Doenças cerebrovasculares "]
["I70 - I79  / Doenças das artérias e dos capilares "]
["I80 - I89  / Doenç. ds veias/vasos linfát. e/gângl. linfát, n/class. outr. part. "]
["J30 - J39  / Outras doenças das vias aéreas superiores "]
["J40 - J46  / Doenças crônicas das vias aéreas inferiores "]
["J47  / Bronquectasia "]
["J60 - J70  / Doenças pulmonares devidas a agentes externos "]
["J80 - J84  / Outras doenç. respir. que afetam principalmente o interstício "]
["J85 - J86  / Afecções necróticas/supurativas das vias aéreas inferiores "]
["J90 - J94  / Outras doenças da pleura "]
["J95 - J99  / Outras doenças do aparelho respiratório "]
["K00 - K14  / Doenças da cavidade oral, /glândulas salivares e/maxilares "]
["K20 - K31  / Doenças do esôfago, do estômago e do duodeno -"]
["K40 - K46  / Hérnia "]
["K50 - K52  / Enterites e colites não infecciosas "]
["K55 - K63  / Outras doenças dos intestinos "]
["K65 - K67  / Doenças do peritônio "]
["K70 - K77  / Doenças do fígado "]
["K80 - K87  / Transtornos da vesícula biliar, das vias biliares e do pâncreas "]
["K90 - K93  / Outras doenças do aparelho digestivo "]
["L00 - L08  / Infecções da pele e do tecido subcutâneo "]
["L10 - L14  / Afecções bolhosas "]
["L20 - L30  / Dermatite e eczema "]
["L40 - L45  / Afecções pápulo – descmativas "]
["L50 - L54  / Urticária e eritema "]
["L55 - L59  / Transtornos da pele/ tecido subcutâneo relacion. c/radiação "]
["L60 - L75  / Afecções dos anexos da pele "]
["L80 - L99  / Outras afecções da pele e do tecido subcutâneo "]
["M00 - M25  / Artropatias "]
["M30 - M36  / Doenças sistêmicas do tecido conjuntivo "]
["M40 - M54  / Dorsopatias "]
["M60 - M79  / Transtornos dos tecidos moles "]
["M80 - M94  / Osteopatias e condropatias "]
["M95 - M99  / Outros transt. do sistema osteomolecular/do tecido conjuntivo "]
["N00 - N08  / Doenças glomerulares "]
["N10 - N16  / Doenças renais túbulo-intersticiais "]
["N17 - N19  / Insuficiência renal "]
["N20 - N23  / Calculose renal "]
["N25 - N29  / Outros transtornos do rim e do ureter "]
["N30 - N39  / Outras doenças do aparelho urinário "]
["N40 - N51  / Doenças dos órgãos genitais masculinos "]
["N60 - N64  / Doenças da mama "]
["N70 - N77  / Doenças inflamatórias dos órgãos pélvicos femininos "]
["N80 - N99  / Transtornos não inflamatórios do trato genital feminino "]
["O00 - O08  / Gravidez que termina em aborto "]
["O10 - O16  / Edema proteinúr/ transt. hipersns. da grav. no part. no puerper. "]
["O20 - 029  / Outros transtornos maternos relac. predomintmte c/gravidez "]
["O30 - O48  / Assist. prest. a mãe p/mot. Lig. feto/cavid. amniótica/probl. Parto "]
["O60 - O75  / Complicações do trabalho de parto e do parto "]
["O80 - O84  / Parto "]
["O85 - O92  / Complicações relacionadas predntmente com o puerpério "]
["O95 - O98  / Outras afecções obstétrics não classificadas em outra parte"]
["O99  / Ots. doenç. mãe. clss. outr. pte, que complc. grvdz, part, puerpério "]
["P00 - P04  / Recém nasc. afet. p/fat. maternos/cmpl. grav/trab/part e parto "]
["P05 - P08  / Transt. relac. c/a duração da gestação e com o cresc. Fetal "]
["P10 - P15  / Traumatismo ocorrido durante o nascimento "]
["P20 - P29  / Trnstrn. respiratrs/cardiovasculares especificas períod. Perinatal "]
["P35 - P39  / Infecções específicas do período perinatal "]
["P50 - P61  / Transtornos hemorrágicos e hematológicos do ft/rcm nasc. "]
["P70 - P74  / Transt. endócrs/metablics transitór. especif. do ft/rcm nascido "]
["P75 - P78  / Transtornos do aparelho digestivo do feto/recém nascido "]
["P80 - P83  / Afecç. que cmprm. tegmen/regulç. térm. do feto/recém nasc. "]
["P90 - P95  / Outros transtornos originados no período perinatal "]
["Q00 - Q07  / Malformações congênitas do sistema nervoso "]
["Q10 - Q18  / Malfomaç. congênit. Do olho, do ouvido, da face, do pesc. "]
["Q20 - Q28  / Malformações congênitas do aparelho circulatório "]
["Q30 - Q34  / Malformações congênitas do aparelho respiratório "]
["Q35 - Q37  / Fenda labial e fenda palatina "]
["Q38 - Q45  / Outras malformações do aparelho digestivo "]
["Q50 - Q56  / Malformações congênitas dos órgãos genitais "]
["Q60 - Q64  / Malformações congênitas do aparelho urinário "]
["Q65 - Q79  / Malformaç/deformid. Congênitas do sistema osteomolecular "]
["Q80 - Q89  / Outras malformações congênitas "]
["Q90 - Q99  / Anomalias cromossômicas não classificadas em outra parte "]
["T80 - T88  / Complicaç. de cuidads médicas e cirurg. n/class. outr. Parte "]
["T90 - T98  / Seqüelas de traumatismos, de intox e de outr. cons. caus. ext. "]
["X50 - X57  / Excesso de esforços, viagens e privações "]
["Y40 - Y82  / Complicações de assistência médica e cirúrgica "]
["Y83 - Y84  / Reaç. anorm. ao pac. compl. tardia caus. prc. cirg. proc. med. sm. ac. "]
["Y85 - Y89  / Seqüelas de causas de morbidade e mortalidade "]
["Z00 - Z99  / Fatores que exercem influências sobre o Estado de Saúde e o contato com os serviços de Saúde."]
["Z94  / Pessoas com órgãos e tecidos transplantados "]
[" / Pessoas que necessitam realizar um transplante de rim "]
[" / Pessoas que necessitam realizar um transplante de córnea "]